bitfinex-derivatives/quotes_ETHF0:USTF0_20260118
["timestamp","ask_amount","ask_price","bid_price","bid_amount"]
[1768731384566,1.03939034,3322.6,3321.5,0.96734339]
[1768731384759,1.09984037,3322.8,3321.5,0.96734339]
[1768731384955,1.03938889,3322.7,3321.5,0.96734339]
[1768731385163,1.03938889,3322.6,3321.5,0.96734339]
[1768731385460,1.09984037,3322.8,3321.3,0.15059]
[1768731385666,1.03938978,3322.7,3321.4,0.96734339]
[1768731385864,1.03938978,3322.6,3321.4,0.96734339]
[1768731386066,1.09984037,3322.8,3321.4,0.96734339]
[1768731386266,1.03939126,3322.7,3321.4,0.96734339]
[1768731386464,1.03939126,3322.6,3321.4,0.96734339]
[1768731386668,1.09984037,3322.8,3321.4,0.96734339]
[1768731386867,1.03939006,3322.7,3321.4,0.96734339]
[1768731387068,1.03939006,3322.6,3321.4,0.96734339]
[1768731387368,1.09984037,3322.8,3321.4,0.96734339]
[1768731387667,1.03939214,3322.7,3321.4,0.96734339]
[1768731387969,1.03939214,3322.6,3321.4,0.96734339]
[1768731388169,0.14042507,3322.7,3321.4,0.96734339]
[1768731388359,1.03939562,3322.6,3321.4,0.96734339]
[1768731388564,0.14042507,3322.7,3321.4,0.96734339]
[1768731388765,1.03939334,3322.6,3321.4,0.96734339]
[1768731388966,0.14042507,3322.7,3321.4,0.96734339]
[1768731389168,1.03895547,3322.6,3321.4,0.96734339]
[1768731389360,0.14042507,3322.7,3321.4,0.96734339]
[1768731389571,1.03895683,3322.6,3321.4,0.96734339]
[1768731389767,0.14042507,3322.7,3321.3,0.15059]
[1768731389967,1.03895624,3322.6,3321.4,0.96734339]
[1768731390168,0.14042507,3322.7,3321.4,0.96734339]
[1768731390369,1.03895676,3322.6,3321.4,0.96734339]
[1768731390571,0.14042507,3322.7,3321.4,0.96734339]
[1768731390869,1.03895517,3322.6,3321.4,0.96734339]
[1768731391075,0.14042507,3322.7,3321.4,0.96734339]
[1768731391279,1.03895536,3322.6,3321.4,0.96734339]
[1768731391467,0.14042507,3322.7,3321.4,0.96734339]
[1768731391667,1.03907232,3322.6,3321.4,0.96734339]
[1768731391868,0.14042507,3322.7,3321.4,0.96734339]
[1768731392069,1.03907423,3322.6,3321.4,0.96734339]
[1768731392368,0.14042507,3322.7,3321.4,0.96734339]
[1768731392572,1.03907595,3322.6,3321.4,0.96734339]
[1768731392765,0.14042507,3322.7,3321.4,0.96734339]
[1768731392969,1.03907706,3322.6,3321.4,0.96734339]
[1768731393169,0.14042507,3322.7,3321.4,0.96734339]
[1768731393377,1.03907612,3322.6,3321.4,0.96734339]
[1768731393578,0.14042507,3322.7,3321.4,0.96734339]
[1768731393774,1.03906275,3322.6,3321.4,0.96734339]
[1768731393979,0.14042507,3322.7,3321.4,0.96734339]
[1768731394180,1.03906275,3322.6,3321.4,0.96734339]
[1768731394478,0.14042507,3322.7,3321.4,0.96734339]
[1768731394780,1.0390548,3322.6,3321.4,0.96734339]
[1768731394969,0.14042507,3322.7,3321.4,0.96734339]
[1768731395169,1.03906431,3322.6,3321.4,0.96734339]
[1768731395379,0.14042507,3322.7,3321.4,0.96734339]
[1768731395573,1.0390593,3322.6,3321.4,0.96734339]
[1768731395778,0.14042507,3322.7,3321.4,0.96734339]
[1768731395981,1.03905625,3322.6,3321.4,0.96734339]
[1768731396179,0.14042507,3322.7,3321.4,0.96734339]
[1768731396379,1.03905778,3322.6,3321.4,0.96734339]
[1768731396575,0.14042507,3322.7,3321.4,0.96734339]
[1768731396774,1.03905747,3322.6,3321.4,0.96734339]
[1768731397073,0.14042507,3322.7,3321.4,0.96734339]
[1768731397268,1.03905671,3322.6,3321.4,0.96734339]
[1768731397472,0.14042507,3322.7,3321.4,0.96734339]
[1768731397681,1.039056,3322.6,3321.4,0.96734339]
[1768731397876,0.14042507,3322.7,3321.4,0.96734339]
[1768731398078,1.03905523,3322.6,3321.4,0.96734339]
[1768731398376,0.14042507,3322.7,3321.4,0.96734339]
[1768731398577,1.03905536,3322.6,3321.4,0.96734339]
[1768731398777,0.14042507,3322.7,3321.4,0.96734339]
[1768731398981,1.03905536,3322.6,3321.4,0.96734339]
[1768731399289,0.14042507,3322.7,3321.4,0.96734339]
[1768731399582,1.03905531,3322.6,3321.4,0.96734339]
[1768731399881,0.14042507,3322.7,3321.4,0.96734339]
[1768731400180,1.03905538,3322.6,3321.4,0.96734339]
[1768731400481,0.14042507,3322.7,3321.5,0.96734339]
[1768731400681,1.03905494,3322.6,3321.5,0.96734339]
[1768731400875,0.14042507,3322.7,3321.5,0.96734339]
[1768731401074,1.03905493,3322.6,3321.5,0.96734339]
[1768731401278,0.14042507,3322.7,3321.5,0.96734339]
[1768731401478,1.03905488,3322.6,3321.5,0.96734339]
[1768731401678,0.14042507,3322.7,3321.5,0.96734339]
[1768731401880,1.03905488,3322.6,3321.5,0.96734339]
[1768731402177,0.14042507,3322.7,3321.5,0.96734339]
[1768731402378,1.03905488,3322.6,3321.5,0.96734339]
[1768731402577,0.14042507,3322.7,3321.5,0.96734339]
[1768731402778,1.03905572,3322.6,3321.5,0.96734339]
[1768731402979,0.14042507,3322.7,3321.5,0.96734339]
[1768731403180,1.03905478,3322.6,3321.5,0.96734339]
[1768731403373,0.14042507,3322.7,3321.5,0.96734339]
[1768731403576,1.03905482,3322.6,3321.5,0.96734339]
[1768731403770,0.14042507,3322.7,3321.5,0.96734339]
[1768731403985,1.03905482,3322.6,3321.5,0.96734339]
[1768731404178,0.14042507,3322.7,3321.5,0.96734339]
[1768731404378,1.03905482,3322.6,3321.5,0.96734339]
[1768731404578,0.14042507,3322.7,3321.5,0.96734339]
[1768731404777,1.03905488,3322.6,3321.5,0.96734339]
[1768731404980,0.14042507,3322.7,3321.5,0.96734339]
[1768731405182,1.03910132,3322.6,3321.5,0.96734339]
[1768731405379,0.14042507,3322.7,3321.5,0.96734339]
[1768731405586,1.03926643,3322.6,3321.5,0.96734339]
[1768731405788,0.14042507,3322.7,3321.5,0.96734339]
[1768731405980,1.03933176,3322.6,3321.5,0.96734339]
[1768731406182,0.14042507,3322.7,3321.5,0.96734339]
[1768731406382,1.03934253,3322.6,3321.5,0.96734339]
[1768731406582,0.14042507,3322.7,3321.5,0.96734339]
[1768731406782,1.03945197,3322.6,3321.5,0.96734339]
[1768731406983,0.14042507,3322.7,3321.5,0.96734339]
[1768731407184,1.03945851,3322.6,3321.5,0.96734339]
[1768731407384,0.14042507,3322.7,3321.5,0.96734339]
[1768731407583,1.03951113,3322.6,3321.5,0.96734339]
[1768731407785,0.14042507,3322.7,3321.5,0.96734339]
[1768731407986,1.03951308,3322.6,3321.5,0.96734339]
[1768731408185,0.14042507,3322.7,3321.5,0.96734339]
[1768731408394,1.03951752,3322.6,3321.5,0.96734339]
[1768731408589,0.14042507,3322.7,3321.5,0.96734339]
[1768731408790,1.03951886,3322.6,3321.5,0.96734339]
[1768731408990,0.14042507,3322.7,3321.5,0.96734339]
[1768731409192,1.03962475,3322.6,3321.5,0.96734339]
[1768731409492,0.14042507,3322.7,3321.5,0.96734339]
[1768731409691,1.03962899,3322.6,3321.5,0.96734339]
[1768731409991,0.14042507,3322.7,3321.5,0.96734339]
[1768731410190,1.03962308,3322.6,3321.5,0.96734339]
[1768731410395,0.14042507,3322.7,3321.5,0.96734339]
[1768731410591,1.03962366,3322.6,3321.5,0.96734339]
[1768731410790,0.14042507,3322.7,3321.5,0.96734339]
[1768731410987,1.03962409,3322.6,3321.5,0.96734339]
[1768731411188,0.14042507,3322.7,3321.5,0.96734339]
[1768731411392,1.03962402,3322.6,3321.5,0.96734339]
[1768731411588,0.14042507,3322.7,3321.5,0.96734339]
[1768731411790,1.0396241,3322.6,3321.5,0.96734339]
[1768731411996,0.14042507,3322.7,3321.5,0.96734339]
[1768731412196,1.0396241,3322.6,3321.5,0.96734339]
[1768731412393,0.14042507,3322.7,3321.3,0.15059]
[1768731412696,1.03966022,3322.6,3321.5,0.96734339]
[1768731412897,0.14042507,3322.7,3321.5,0.96734339]
[1768731413087,1.03987208,3322.6,3321.5,0.96734339]
[1768731413289,0.14042507,3322.7,3321.3,0.15059]
[1768731413485,1.03988686,3322.6,3321.3,0.15059]
[1768731413696,0.14042507,3322.7,3321.3,0.15059]
[1768731413897,1.03987426,3322.6,3321.3,0.15059]
[1768731414102,0.14042507,3322.7,3321.3,0.15059]
[1768731414302,1.03982882,3322.6,3321.3,0.15059]
[1768731414598,0.14042507,3322.7,3321.3,0.15059]
[1768731414802,1.03966275,3322.6,3321.3,0.15059]
[1768731414999,0.14042507,3322.7,3321.3,0.15059]
[1768731415200,1.03966167,3322.6,3321.3,0.15059]
[1768731415401,0.14042507,3322.7,3321.3,0.15059]
[1768731415594,1.03966173,3322.6,3321.3,0.15059]
[1768731415798,0.14042507,3322.7,3321.3,0.15059]
[1768731416096,1.03966124,3322.6,3321.3,0.15059]
[1768731416293,0.14042507,3322.7,3321.3,0.15059]
[1768731416494,1.03966131,3322.6,3321.3,0.15059]
[1768731416793,0.14042507,3322.7,3321.3,0.15059]
[1768731416994,1.03966134,3322.6,3321.3,0.15059]
[1768731417204,0.14042507,3322.7,3321.3,0.15059]
[1768731417402,1.03966134,3322.6,3321.3,0.15059]
[1768731417604,0.14042507,3322.7,3321.3,0.15059]
[1768731417902,1.03966226,3322.6,3321.3,0.15059]
[1768731418103,0.14042507,3322.7,3321.3,0.15059]
[1768731418402,1.03960099,3322.6,3321.3,0.15059]
[1768731418605,0.14042507,3322.7,3321.3,0.15059]
[1768731418806,1.03959896,3322.6,3321.3,0.15059]
[1768731419105,0.14042507,3322.7,3321.3,0.15059]
[1768731419403,1.0391542,3322.6,3321.3,0.15059]
[1768731419603,0.14042507,3322.7,3321.3,0.15059]
[1768731419804,1.03915488,3322.6,3321.3,0.15059]
[1768731420007,0.14042507,3322.7,3321.3,0.15059]
[1768731420207,1.03909644,3322.6,3321.3,0.15059]
[1768731420398,0.14042507,3322.7,3321.3,0.15059]
[1768731420598,1.03898165,3322.6,3321.3,0.15059]
[1768731420807,0.14042507,3322.7,3321.3,0.15059]
[1768731421005,1.03898123,3322.6,3321.3,0.15059]
[1768731421212,0.14042507,3322.7,3321.3,0.15059]
[1768731421411,1.03898108,3322.6,3321.3,0.15059]
[1768731421611,0.14042507,3322.7,3321.3,0.15059]
[1768731421812,1.03898246,3322.6,3321.3,0.15059]
[1768731422009,0.14042507,3322.7,3321.3,0.15059]
[1768731422310,1.03898248,3322.6,3321.3,0.15059]
[1768731422610,0.14042507,3322.7,3321.3,0.15059]
[1768731422810,1.03898255,3322.6,3321.3,0.15059]
[1768731423005,0.14042507,3322.7,3321.3,0.15059]
[1768731423206,1.03898255,3322.6,3321.3,0.15059]
[1768731423406,0.14042507,3322.7,3321.3,0.15059]
[1768731423606,1.03899083,3322.6,3321.3,0.15059]
[1768731423808,0.14042507,3322.7,3321.3,0.15059]
[1768731424005,1.03899093,3322.6,3321.3,0.15059]
[1768731424211,0.14042507,3322.7,3321.3,0.15059]
[1768731424507,1.03899093,3322.6,3321.3,0.15059]
[1768731424808,0.14042507,3322.7,3321.3,0.15059]
[1768731425007,1.03900338,3322.6,3321.3,0.15059]
[1768731425210,0.14042507,3322.7,3321.3,0.15059]
[1768731425403,1.03900365,3322.6,3321.3,0.15059]
[1768731425611,0.14042507,3322.7,3321.3,0.15059]
[1768731425909,1.0390012,3322.6,3321.3,0.15059]
[1768731426109,0.14042507,3322.7,3321.3,0.15059]
[1768731426310,1.03900027,3322.6,3321.3,0.15059]
[1768731426512,0.14042507,3322.7,3321.3,0.15059]
[1768731426809,1.03900189,3322.6,3321.3,0.15059]
[1768731427010,0.14042507,3322.7,3321.3,0.15059]
[1768731427202,1.03900127,3322.6,3321.3,0.15059]
[1768731427408,0.14042507,3322.7,3321.3,0.15059]
[1768731427608,1.03900314,3322.6,3321.3,0.15059]
[1768731427810,0.14042507,3322.7,3321.3,0.15059]
[1768731428104,1.0390038,3322.6,3321.3,0.15059]
[1768731428308,0.14042507,3322.7,3321.3,0.15059]
[1768731428509,1.03900623,3322.6,3321.3,0.15059]
[1768731428707,0.14042507,3322.7,3321.3,0.15059]
[1768731428910,1.03900453,3322.6,3321.3,0.15059]
[1768731429216,0.14042507,3322.7,3321.3,0.15059]
[1768731429415,1.03900453,3322.6,3321.3,0.15059]
[1768731429615,0.14042507,3322.7,3321.3,0.15059]
[1768731429812,1.03900415,3322.6,3321.3,0.15059]
[1768731430113,0.14042507,3322.7,3321.3,0.15059]
[1768731430313,1.0390049,3322.6,3321.3,0.15059]
[1768731430612,0.14042507,3322.7,3321.3,0.15059]
[1768731430911,1.03900467,3322.6,3321.3,0.15059]
[1768731431111,0.14042507,3322.7,3321.3,0.15059]
[1768731431311,1.03900465,3322.6,3321.3,0.15059]
[1768731431511,0.14042507,3322.7,3321.3,0.15059]
[1768731431714,1.03900469,3322.6,3321.3,0.15059]
[1768731432011,0.14042507,3322.7,3321.3,0.15059]
[1768731432211,1.03900469,3322.6,3321.3,0.15059]
[1768731432412,0.14042507,3322.7,3321.3,0.15059]
[1768731432621,1.03900473,3322.6,3321.3,0.15059]
[1768731432821,0.14042507,3322.7,3321.3,0.15059]
[1768731433014,1.03900473,3322.6,3321.3,0.15059]
[1768731433216,0.14042507,3322.7,3321.3,0.15059]
[1768731433415,1.03900805,3322.6,3321.3,0.15059]
[1768731433619,0.14042507,3322.7,3321.3,0.15059]
[1768731433819,1.03900576,3322.6,3321.3,0.15059]
[1768731434022,0.14042507,3322.7,3321.3,0.15059]
[1768731434318,1.0390067,3322.6,3321.3,0.15059]
[1768731434522,0.14042507,3322.7,3321.3,0.15059]
[1768731434724,1.03900773,3322.6,3321.3,0.15059]
[1768731434920,0.14042507,3322.7,3321.3,0.15059]
[1768731435121,1.0390075,3322.6,3321.3,0.15059]
[1768731435422,0.14042507,3322.7,3321.3,0.15059]
[1768731435621,1.03900547,3322.6,3321.3,0.15059]
[1768731435822,0.14042507,3322.7,3321.3,0.15059]
[1768731436122,1.0390005,3322.6,3321.3,0.15059]
[1768731436322,0.14042507,3322.7,3321.3,0.15059]
[1768731436509,1.03899851,3322.6,3321.3,0.15059]
[1768731436713,0.14042507,3322.7,3321.3,0.15059]
[1768731436923,1.03899851,3322.6,3321.3,0.15059]
[1768731437117,0.14042507,3322.7,3321.3,0.15059]
[1768731437315,1.03899851,3322.6,3321.3,0.15059]
[1768731437515,0.14042507,3322.7,3321.3,0.15059]
[1768731437715,1.03899761,3322.6,3321.3,0.15059]
[1768731437917,0.14042507,3322.7,3321.3,0.15059]
[1768731438115,1.03899761,3322.6,3321.3,0.15059]
[1768731438322,0.14042507,3322.7,3321.3,0.15059]
[1768731438622,1.03899681,3322.6,3321.3,0.15059]
[1768731438822,0.14042507,3322.7,3321.3,0.15059]
[1768731439022,1.03899675,3322.6,3321.3,0.15059]
[1768731439215,0.14042507,3322.7,3321.3,0.15059]
[1768731439411,1.03899674,3322.6,3321.3,0.15059]
[1768731439622,0.14042507,3322.7,3321.3,0.15059]
[1768731439819,1.03899603,3322.6,3321.3,0.15059]
[1768731440124,0.14042507,3322.7,3321.3,0.15059]
[1768731440318,1.03899603,3322.6,3321.3,0.15059]
[1768731440520,0.14042507,3322.7,3321.3,0.15059]
[1768731440726,1.03899361,3322.6,3321.3,0.15059]
[1768731441025,0.14042507,3322.7,3321.3,0.15059]
[1768731441325,1.03898365,3322.6,3321.3,0.15059]
[1768731441517,0.14042507,3322.7,3321.3,0.15059]
[1768731441717,1.03898302,3322.6,3321.3,0.15059]
[1768731442026,0.14042507,3322.7,3321.3,0.15059]
[1768731442326,1.03898302,3322.6,3321.3,0.15059]
[1768731442525,0.14042507,3322.7,3321.3,0.15059]
[1768731442727,1.03898233,3322.6,3321.3,0.15059]
[1768731443026,0.14042507,3322.7,3321.3,0.15059]
[1768731443225,1.03898233,3322.6,3321.3,0.15059]
[1768731443526,0.14042507,3322.7,3321.3,0.15059]
[1768731443720,1.03898206,3322.6,3321.3,0.15059]
[1768731443918,0.14042507,3322.7,3321.3,0.15059]
[1768731444218,1.03898206,3322.6,3321.3,0.15059]
[1768731444516,0.14042507,3322.7,3321.3,0.15059]
[1768731444718,1.03898189,3322.6,3321.3,0.15059]
[1768731444922,0.14042507,3322.7,3321.3,0.15059]
[1768731445223,1.03898206,3322.6,3321.3,0.15059]
[1768731445423,0.14042507,3322.7,3321.3,0.15059]
[1768731445625,1.03898194,3322.6,3321.3,0.15059]
[1768731445817,0.14042507,3322.7,3321.3,0.15059]
[1768731446013,1.03898305,3322.6,3321.3,0.15059]
[1768731446228,0.14042507,3322.7,3321.3,0.15059]
[1768731446422,1.17484082,3322.6,3321.3,0.15059]
[1768731446616,0.13585778,3322.6,3321.3,0.15059]
[1768731473342,0.13585778,3322.6,3321.5,0.96726614]
[1768731480445,0.96726614,3322.3,3321.3,0.15059]
[1768731480845,0.13450967,3322.4,3321.3,0.15059]
[1768731484258,0.96726614,3322.3,3320.6,0.15290852]
[1768731484563,1.10177581,3321.9,3320.6,0.15290852]
[1768731485562,0.13450967,3321.9,3320.6,0.15290852]
[1768731486265,0.13450967,3321.9,3320.6,1.12017466]
[1768731496271,0.13450967,3321.9,3320.6,0.15290852]
[1768731496462,0.13450967,3321.9,3320.6,1.12017466]
[1768731498873,1.10177581,3321.8,3320.6,0.15290852]
[1768731499073,0.13450967,3321.7,3320.6,0.15290852]
[1768731504974,1.10738687,3321.6,3320.6,0.15290852]
[1768731505279,1.10738687,3321.6,3320.6,0.00228852]
[1768731506474,0.14012073,3321.5,3320.6,0.00228852]
[1768731506675,0.14329121,3321.5,3320.6,0.00228852]
[1768731506876,0.14329121,3321.5,3320.2,0.96726614]
[1768731507070,0.96726614,3321.4,3320.2,0.96726614]
[1768731507679,1.10738687,3321.4,3320.2,0.96726614]
[1768731507885,1.10738687,3321.4,3320.2,0.9709188]
[1768731508779,1.10738687,3321.4,3320.2,0.00365266]
[1768731509288,0.14012073,3321.4,3320.3,0.96726614]
[1768731512886,0.14012073,3321.4,3320.2,0.00365266]
[1768731513189,0.14012073,3321.4,3320.3,0.96726614]
[1768731525004,0.00317048,3321.5,3320.3,0.96726614]
[1768731527904,0.12902456,3322.2,3320.9,0.96726614]
[1768731528107,1.04085209,3322.1,3320.9,0.96726614]
[1768731528294,1.04085209,3322.0,3320.9,0.96726614]
[1768731528492,1.04085209,3321.9,3320.9,0.96726614]
[1768731528688,0.12902456,3322.2,3320.9,0.96726614]
[1768731528890,1.04100534,3322.1,3320.9,0.96726614]
[1768731529093,1.04100534,3322.0,3320.9,0.96726614]
[1768731529303,1.04100534,3321.9,3320.9,0.96726614]
[1768731529501,0.00298002,3322.2,3320.9,0.96726614]
[1768731529799,1.04103386,3322.1,3321.1,0.96726614]
[1768731530000,1.04103386,3322.0,3321.1,0.96726614]
[1768731530193,0.00298002,3322.2,3321.1,0.96726614]
[1768731530492,1.04085336,3322.1,3321.1,0.96726614]
[1768731530693,1.04085336,3322.0,3321.1,0.96726614]
[1768731531007,0.00298002,3322.2,3321.1,0.96726614]
[1768731531305,1.04090133,3322.1,3321.1,0.96726614]
[1768731531603,1.04090133,3322.0,3321.1,0.96726614]
[1768731531802,0.00298002,3322.2,3321.1,0.96726614]
[1768731532002,1.04075138,3322.1,3321.1,0.96726614]
[1768731532199,0.00298002,3322.2,3321.1,0.96726614]
[1768731532399,1.04066425,3322.1,3321.1,0.96726614]
[1768731532597,0.00298002,3322.2,3321.1,0.96726614]
[1768731532799,1.04066411,3322.1,3321.1,0.96726614]
[1768731532998,0.00298002,3322.2,3321.1,0.96726614]
[1768731533200,1.04066429,3322.1,3321.1,0.96726614]
[1768731533507,0.00298002,3322.2,3321.1,0.96726614]
[1768731533707,1.0404828,3322.1,3321.1,0.96726614]
[1768731533897,0.00298002,3322.2,3321.1,0.96726614]
[1768731534097,1.04048645,3322.1,3321.1,0.96726614]
[1768731534299,0.00298002,3322.2,3321.1,0.96726614]
[1768731534497,1.04033009,3322.1,3321.1,0.96726614]
[1768731534699,0.00298002,3322.2,3321.1,0.96726614]
[1768731534898,1.0403334,3322.1,3321.1,0.96726614]
[1768731535103,0.00298002,3322.2,3321.1,0.96726614]
[1768731535408,0.00298002,3322.2,3320.9,0.10455283]
[1768731541313,0.13543382,3322.2,3320.6,0.15062]
[1768731541503,0.1324538,3322.0,3320.6,0.15062]
[1768731551217,1.03870559,3321.9,3320.6,0.15062]
[1768731551412,0.1324538,3322.0,3320.6,0.15062]
[1768731551612,1.03874194,3321.9,3320.6,0.15062]
[1768731551820,0.1324538,3321.9,3320.6,0.15062]
[1768731555325,1.03925425,3321.8,3320.6,0.15062]
[1768731555526,0.1324538,3321.9,3320.6,0.15062]
[1768731556129,1.03943003,3321.8,3320.6,0.15062]
[1768731556329,0.1324538,3321.9,3320.6,0.15062]
[1768731556518,1.03944129,3321.8,3320.6,0.15062]
[1768731556721,0.1324538,3321.9,3320.6,0.15062]
[1768731556920,1.03944155,3321.8,3320.6,0.15062]
[1768731557122,0.1324538,3321.9,3320.6,0.15062]
[1768731557321,1.03967019,3321.8,3320.6,0.15062]
[1768731557522,0.1324538,3321.9,3320.6,0.15062]
[1768731557723,1.03967068,3321.8,3320.6,0.15062]
[1768731557927,0.1324538,3321.9,3320.6,0.15062]
[1768731558124,1.03967068,3321.8,3320.6,0.15062]
[1768731558324,0.1324538,3321.9,3320.6,0.15062]
[1768731558525,1.03970494,3321.8,3320.6,0.15062]
[1768731558727,0.1324538,3321.9,3320.6,0.15062]
[1768731558922,1.03970521,3321.8,3320.6,0.15062]
[1768731559122,0.1324538,3321.9,3320.6,0.15062]
[1768731559332,1.03969116,3321.8,3320.6,0.15062]
[1768731559528,0.1324538,3321.9,3320.6,0.15062]
[1768731559722,1.03969094,3321.8,3320.6,0.15062]
[1768731559922,0.1324538,3321.9,3320.6,0.15062]
[1768731560126,1.03969001,3321.8,3320.6,0.15062]
[1768731560424,0.1324538,3321.9,3320.6,0.15062]
[1768731560624,1.03968243,3321.8,3320.6,0.15062]
[1768731560821,0.1324538,3321.9,3320.6,0.15062]
[1768731561120,1.03968337,3321.8,3320.6,0.15062]
[1768731561419,0.1324538,3321.9,3320.6,0.15062]
[1768731561622,1.03968518,3321.8,3320.6,0.15062]
[1768731561828,0.1324538,3321.9,3320.6,0.15062]
[1768731562034,1.03968505,3321.8,3320.6,0.15062]
[1768731562234,0.1324538,3321.9,3320.6,0.15062]
[1768731562532,1.03968322,3321.8,3320.6,0.15062]
[1768731562722,0.1324538,3321.9,3320.6,0.15062]
[1768731562923,1.03968327,3321.8,3320.6,0.15062]
[1768731563119,0.1324538,3321.9,3320.6,0.15062]
[1768731563329,1.03971322,3321.8,3320.6,0.15062]
[1768731563533,0.1324538,3321.9,3320.6,0.15062]
[1768731563729,1.03972171,3321.8,3320.6,0.15062]
[1768731563925,0.1324538,3321.9,3320.6,0.15062]
[1768731564126,1.03972171,3321.8,3320.6,0.15062]
[1768731564329,0.1324538,3321.9,3320.6,0.15062]
[1768731564531,1.03976929,3321.8,3320.6,0.15062]
[1768731564724,0.1324538,3321.9,3320.6,0.15062]
[1768731564929,1.03967838,3321.8,3320.6,0.15062]
[1768731565129,0.1324538,3321.9,3320.6,0.15062]
[1768731565324,1.03972709,3321.8,3320.6,0.15062]
[1768731565531,0.1324538,3321.9,3320.6,0.15062]
[1768731565730,1.03973664,3321.8,3320.6,0.15062]
[1768731565933,0.1324538,3321.9,3320.6,0.15062]
[1768731566133,1.03973565,3321.8,3320.6,0.15062]
[1768731566333,0.1324538,3321.9,3320.6,0.15062]
[1768731566533,1.03980715,3321.8,3320.6,0.15062]
[1768731566835,0.1324538,3321.9,3320.6,0.15062]
[1768731567032,1.03980598,3321.8,3320.6,0.15062]
[1768731567232,0.1324538,3321.9,3320.6,0.15062]
[1768731567535,1.03988936,3321.8,3320.6,0.15062]
[1768731567731,0.1324538,3321.9,3320.6,0.15062]
[1768731568035,1.03988936,3321.8,3320.6,0.15062]
[1768731568239,0.1324538,3321.9,3320.6,0.15062]
[1768731568538,1.03986744,3321.8,3320.6,0.15062]
[1768731568834,0.1324538,3321.9,3320.6,0.15062]
[1768731569036,1.03984032,3321.8,3320.6,0.15062]
[1768731569237,0.1324538,3321.9,3320.6,0.15062]
[1768731569428,1.03850407,3321.8,3320.6,0.15062]
[1768731569629,0.1324538,3321.9,3320.6,0.15062]
[1768731569829,1.03850381,3321.8,3320.6,0.15062]
[1768731570034,0.1324538,3321.9,3320.6,0.15062]
[1768731570231,1.03850365,3321.8,3320.6,0.15062]
[1768731570432,0.1324538,3321.9,3320.6,0.15062]
[1768731570634,1.03851019,3321.8,3320.6,0.15062]
[1768731570835,0.1324538,3321.9,3320.6,0.15062]
[1768731571042,1.03850917,3321.8,3320.6,0.15062]
[1768731571235,1.03873082,3321.7,3320.6,0.15062]
[1768731571436,0.1324538,3321.9,3320.6,0.15062]
[1768731571638,1.03873233,3321.8,3320.6,0.15062]
[1768731571942,1.03873233,3321.7,3320.6,0.15062]
[1768731572141,0.1324538,3321.9,3320.6,0.15062]
[1768731572439,1.03862334,3321.8,3320.6,0.15062]
[1768731572638,1.03862334,3321.7,3320.6,0.15062]
[1768731572939,0.1324538,3321.9,3320.6,0.15062]
[1768731573139,1.03862879,3321.8,3320.6,0.15062]
[1768731573440,1.03862879,3321.7,3320.6,0.15062]
[1768731573741,0.1324538,3321.9,3320.6,0.15062]
[1768731573941,1.03863443,3321.8,3320.6,0.15062]
[1768731574143,1.03863443,3321.7,3320.6,0.15062]
[1768731574337,0.1324538,3321.9,3320.6,0.15062]
[1768731574531,1.03864096,3321.8,3320.6,0.15062]
[1768731574733,1.03864096,3321.7,3320.6,0.15062]
[1768731574947,0.1324538,3321.9,3320.6,0.15062]
[1768731575238,1.03933976,3321.8,3320.6,0.15062]
[1768731575429,1.03933976,3321.7,3320.6,0.15062]
[1768731575626,0.1324538,3321.9,3320.6,0.15062]
[1768731575834,1.03935292,3321.8,3320.6,0.15062]
[1768731576039,0.1324538,3321.9,3320.6,0.15062]
[1768731576040,1.03935292,3321.7,3320.6,0.15062]
[1768731576243,0.1324538,3321.9,3320.6,0.15062]
[1768731576433,1.03936173,3321.8,3320.6,0.15062]
[1768731576631,1.03936173,3321.7,3320.6,0.15062]
[1768731576831,0.1324538,3321.9,3320.6,0.15062]
[1768731577040,1.03936426,3321.8,3320.6,0.15062]
[1768731577240,1.03936426,3321.7,3320.6,0.15062]
[1768731577441,0.1324538,3321.9,3320.6,0.15062]
[1768731577741,1.03925635,3321.8,3320.6,0.15062]
[1768731577942,1.03925635,3321.7,3320.6,0.15062]
[1768731578144,0.1324538,3321.9,3320.6,0.15062]
[1768731578341,1.03918309,3321.8,3320.6,0.15062]
[1768731578641,1.03918309,3321.7,3320.6,0.15062]
[1768731578944,0.1324538,3321.9,3320.6,0.15062]
[1768731579137,1.03916913,3321.8,3320.6,0.15062]
[1768731579443,1.03916913,3321.7,3320.6,0.15062]
[1768731579641,0.1324538,3321.9,3320.6,0.15062]
[1768731579941,1.03918505,3321.8,3320.6,0.15062]
[1768731580240,1.03918505,3321.7,3320.6,0.15062]
[1768731580438,0.1324538,3321.9,3320.6,0.15062]
[1768731580641,1.03902377,3321.8,3320.6,0.15062]
[1768731580937,1.03902377,3321.7,3320.6,0.15062]
[1768731581137,0.1324538,3321.9,3320.6,0.15062]
[1768731581338,1.03902555,3321.8,3320.6,0.15062]
[1768731581537,1.03902555,3321.7,3320.6,0.15062]
[1768731595358,1.03902555,3321.7,3320.6,1.11842322]
[1768731599170,1.03902555,3321.7,3320.8,0.96780322]
[1768731599364,0.97078324,3322.2,3320.8,0.96780322]
[1768731599558,1.0377592,3322.1,3320.8,0.96780322]
[1768731599757,1.0377592,3322.0,3320.8,0.96780322]
[1768731599957,1.0377592,3321.9,3320.8,0.96780322]
[1768731600256,1.0377592,3321.8,3320.8,0.96780322]
[1768731600458,1.0377592,3321.7,3320.8,0.96780322]
[1768731600666,0.13318052,3322.1,3320.8,0.96780322]
[1768731600869,1.03772475,3322.0,3320.8,0.96780322]
[1768731601056,1.03772475,3321.9,3320.8,0.96780322]
[1768731601257,1.03772475,3321.8,3320.8,0.96780322]
[1768731601457,0.13318052,3322.1,3320.8,0.96780322]
[1768731601758,1.03771614,3322.0,3320.8,0.96780322]
[1768731601956,1.03771614,3321.9,3320.8,0.96780322]
[1768731602157,1.03771614,3321.8,3320.8,0.96780322]
[1768731602368,0.13318052,3322.1,3320.8,0.96780322]
[1768731602569,1.03768214,3322.0,3320.8,0.96780322]
[1768731602769,1.03768214,3321.9,3320.6,1.11842322]
[1768731602968,1.03768214,3321.8,3320.6,1.11842322]
[1768731603269,0.96780322,3322.0,3320.6,1.11842322]
[1768731603471,1.03767717,3321.9,3320.6,1.11842322]
[1768731603675,1.03767717,3321.8,3320.6,1.11842322]
[1768731603865,0.96780322,3322.0,3320.6,1.11842322]
[1768731604169,1.03767794,3321.9,3320.6,1.11842322]
[1768731604372,1.03767794,3321.8,3320.6,1.11842322]
[1768731604671,1.03767304,3321.7,3320.6,1.11842322]
[1768731604971,1.10098374,3322.0,3320.6,1.11842322]
[1768731605171,1.03767311,3321.9,3320.6,1.11842322]
[1768731605372,1.03767311,3321.8,3320.6,1.11842322]